[Event "Titled Tuesday Blitz September 21 2021"]
[White "Moksh Amit Doshi"]
[Black "Rustemov, Alexander"]
[WhiteFideId "25064967"]
[BlackFideId "4119002"]
[WhiteElo "2245"]
[BlackElo "2760"]
[Result "1-0"]
[Round "06"]
[TimeControl "180+1"]
[Date "2021.09.21"]
[WhiteClock "0:00:26"]
[BlackClock "0:00:10"]

1. d4 {[%clk 0:02:53]}  d5 {[%clk 0:02:59]} 2. c4 {[%clk 0:02:50]}  dxc4 {[%clk 0:02:59]} 3. Nf3 {[%clk 0:02:49]}  a6 {[%clk 0:02:57]} 4. e3 {[%clk 0:02:46]}  e6 {[%clk 0:02:56]} 5. Bxc4 {[%clk 0:02:46]}  c5 {[%clk 0:02:57]} 6. O-O {[%clk 0:02:46]}  Nf6 {[%clk 0:02:56]} 7. b3 {[%clk 0:02:44]}  b6 {[%clk 0:02:49]} 8. Bb2 {[%clk 0:02:44]}  Bb7 {[%clk 0:02:50]} 9. Be2 {[%clk 0:02:42]}  Nbd7 {[%clk 0:02:48]} 10. Nbd2 {[%clk 0:02:39]}  Be7 {[%clk 0:02:46]} 11. Nc4 {[%clk 0:02:34]}  O-O {[%clk 0:02:44]} 12. Nfe5 {[%clk 0:02:25]}  b5 {[%clk 0:02:25]} 13. Nxd7 {[%clk 0:02:23]}  Nxd7 {[%clk 0:02:24]} 14. Nd2 {[%clk 0:02:22]}  Qb6 {[%clk 0:02:16]} 15. Rc1 {[%clk 0:02:18]}  Rfd8 {[%clk 0:02:12]} 16. Bf3 {[%clk 0:02:18]}  Rac8 {[%clk 0:02:05]} 17. Qe2 {[%clk 0:02:03]}  Bxf3 {[%clk 0:01:38]} 18. Nxf3 {[%clk 0:02:01]}  cxd4 {[%clk 0:01:33]} 19. Bxd4 {[%clk 0:02:00]}  Qb7 {[%clk 0:01:31]} 20. Qb2 {[%clk 0:01:57]}  f6 {[%clk 0:01:23]} 21. Rfd1 {[%clk 0:01:48]}  Rxc1 {[%clk 0:01:20]} 22. Qxc1 {[%clk 0:01:47]}  Rc8 {[%clk 0:01:17]} 23. Qd2 {[%clk 0:01:46]}  Nf8 {[%clk 0:01:12]} 24. h4 {[%clk 0:01:42]}  e5 {[%clk 0:01:11]} 25. Bc3 {[%clk 0:01:39]}  Rd8 {[%clk 0:01:10]} 26. Qe2 {[%clk 0:01:40]}  Rxd1+ {[%clk 0:01:09]} 27. Qxd1 {[%clk 0:01:41]}  Qc6 {[%clk 0:01:06]} 28. Qd2 {[%clk 0:01:31]}  Qd7 {[%clk 0:01:02]} 29. Qc2 {[%clk 0:01:27]}  h5 {[%clk 0:00:57]} 30. Nd2 {[%clk 0:01:27]}  Qc6 {[%clk 0:00:54]} 31. Qd3 {[%clk 0:01:26]}  Kf7 {[%clk 0:00:52]} 32. Ne4 {[%clk 0:01:24]}  Qd7 {[%clk 0:00:50]} 33. Qe2 {[%clk 0:01:21]}  Qf5 {[%clk 0:00:49]} 34. Ng3 {[%clk 0:01:20]}  Qb1+ {[%clk 0:00:48]} 35. Kh2 {[%clk 0:01:20]}  g6 {[%clk 0:00:49]} 36. Qf3 {[%clk 0:01:20]}  Qxa2 {[%clk 0:00:42]} 37. Qd5+ {[%clk 0:01:16]}  Ne6 {[%clk 0:00:37]} 38. f4 {[%clk 0:01:04]}  exf4 {[%clk 0:00:32]} 39. exf4 {[%clk 0:01:05]}  f5 {[%clk 0:00:32]} 40. Nxf5 {[%clk 0:01:04]}  gxf5 {[%clk 0:00:21]} 41. Qxf5+ {[%clk 0:01:05]}  Ke8 {[%clk 0:00:21]} 42. Qxe6 {[%clk 0:01:03]}  Qf2 {[%clk 0:00:21]} 43. Qg6+ {[%clk 0:00:53]}  Kd7 {[%clk 0:00:20]} 44. Qf5+ {[%clk 0:00:52]}  Ke8 {[%clk 0:00:18]} 45. Qxh5+ {[%clk 0:00:49]}  Kd8 {[%clk 0:00:19]} 46. Qd5+ {[%clk 0:00:46]}  Ke8 {[%clk 0:00:17]} 47. Qg8+ {[%clk 0:00:43]}  Kd7 {[%clk 0:00:17]} 48. Qg4+ {[%clk 0:00:44]}  Kd8 {[%clk 0:00:17]} 49. Ba5+ {[%clk 0:00:41]}  Ke8 {[%clk 0:00:16]} 50. h5 {[%clk 0:00:40]}  Bd6 {[%clk 0:00:09]} 51. Qg6+ {[%clk 0:00:36]}  Kd7 {[%clk 0:00:09]} 52. Qf7+ {[%clk 0:00:34]}  Kc6 {[%clk 0:00:09]} 53. Qe8+ {[%clk 0:00:34]}  Kd5 {[%clk 0:00:08]} 54. Qa8+ {[%clk 0:00:31]}  Ke6 {[%clk 0:00:08]} 55. Qe4+ {[%clk 0:00:31]}  Kd7 {[%clk 0:00:09]} 56. Qf5+ {[%clk 0:00:17]}  Kc6 {[%clk 0:00:09]} 57. Kh3 {[%clk 0:00:15]}  b4 {[%clk 0:00:08]} 58. h6 {[%clk 0:00:13]}  Bxf4 {[%clk 0:00:05]} 59. Qe4+ {[%clk 0:00:13]}  Kd7 {[%clk 0:00:05]} 60. Qd5+ {[%clk 0:00:13]}  Ke7 {[%clk 0:00:04]} 61. Bxb4+ {[%clk 0:00:13]}  Kf6 {[%clk 0:00:05]} 62. Bc3+ {[%clk 0:00:13]}  Kg6 {[%clk 0:00:05]} 63. Qe4+ {[%clk 0:00:13]}  Kxh6 {[%clk 0:00:04]} 64. Qe6+ {[%clk 0:00:13]}  Kh7 {[%clk 0:00:04]} 65. Qe7+ {[%clk 0:00:14]}  Kg6 {[%clk 0:00:04]} 66. Qg7+ {[%clk 0:00:13]}  Kf5 {[%clk 0:00:04]} 67. Qf7+ {[%clk 0:00:13]}  Ke4 {[%clk 0:00:04]} 68. Qe6+ {[%clk 0:00:14]}  Kd3 {[%clk 0:00:05]} 69. Qc4+ {[%clk 0:00:13]}  Ke3 {[%clk 0:00:06]} 70. Bd4+ {[%clk 0:00:13]}  Kd2 {[%clk 0:00:05]} 71. Bxf2 {[%clk 0:00:14]}  Be5 {[%clk 0:00:05]} 72. Bd4 {[%clk 0:00:14]}  Bf4 {[%clk 0:00:05]} 73. Qc3+ {[%clk 0:00:15]}  Ke2 {[%clk 0:00:05]} 74. Be5 {[%clk 0:00:15]}  Be3 {[%clk 0:00:05]} 75. Qxe3+ {[%clk 0:00:15]}  Kxe3 {[%clk 0:00:05]} 76. g4 {[%clk 0:00:16]}  Ke4 {[%clk 0:00:05]} 77. Bb2 {[%clk 0:00:15]}  Kd3 {[%clk 0:00:05]} 78. Kh4 {[%clk 0:00:16]}  Kc2 {[%clk 0:00:06]} 79. Kh5 {[%clk 0:00:17]}  Kxb2 {[%clk 0:00:06]} 80. g5 {[%clk 0:00:17]}  Kxb3 {[%clk 0:00:07]} 81. g6 {[%clk 0:00:18]}  a5 {[%clk 0:00:08]} 82. g7 {[%clk 0:00:19]}  a4 {[%clk 0:00:09]} 83. g8=Q+ {[%clk 0:00:19]}  Kb2 {[%clk 0:00:09]} 84. Qg2+ {[%clk 0:00:20]}  Kb3 {[%clk 0:00:09]} 85. Qf3+ {[%clk 0:00:20]}  Kb2 {[%clk 0:00:09]} 86. Qe2+ {[%clk 0:00:21]}  Kb3 {[%clk 0:00:09]} 87. Qd3+ {[%clk 0:00:21]}  Kb2 {[%clk 0:00:10]} 88. Qb5+ {[%clk 0:00:21]}  Ka3 {[%clk 0:00:08]} 89. Kg4 {[%clk 0:00:22]}  Ka2 {[%clk 0:00:08]} 90. Qxa4+ {[%clk 0:00:22]}  Kb2 {[%clk 0:00:09]} 91. Kf3 {[%clk 0:00:23]}  Kc3 {[%clk 0:00:10]} 92. Ke2 {[%clk 0:00:24]}  Kb2 {[%clk 0:00:09]} 93. Qd4+ {[%clk 0:00:24]}  Kc2 {[%clk 0:00:09]} 94. Qd3+ {[%clk 0:00:24]}  Kc1 {[%clk 0:00:09]} 95. Qd2+ {[%clk 0:00:24]}  Kb1 {[%clk 0:00:09]} 96. Kd3 {[%clk 0:00:25]}  Ka1 {[%clk 0:00:10]} 97. Kc3 {[%clk 0:00:25]}  Kb1 {[%clk 0:00:10]} 98. Qb2# {[%clk 0:00:26]} 1-0


[Site "https://www.chess.com"]

[Event "Titled Tuesday Blitz September 21 2021"]
[White "Nakamura, Hikaru"]
[Black "Svane, Rasmus"]
[WhiteFideId "2016192"]
[BlackFideId "4657101"]
[WhiteElo "2884"]
[BlackElo "2643"]
[Result "1-0"]
[Round "06"]
[TimeControl "180+1"]
[Date "2021.09.21"]
[WhiteClock "0:00:56"]
[BlackClock "0:00:18"]

1. e4 {[%clk 0:03:00]}  c6 {[%clk 0:03:00]} 2. Nf3 {[%clk 0:02:58]}  d5 {[%clk 0:03:00]} 3. Nc3 {[%clk 0:02:59]}  dxe4 {[%clk 0:03:00]} 4. Nxe4 {[%clk 0:02:59]}  Nf6 {[%clk 0:03:01]} 5. Qe2 {[%clk 0:02:59]}  Nxe4 {[%clk 0:03:02]} 6. Qxe4 {[%clk 0:02:59]}  Qa5 {[%clk 0:03:02]} 7. Bc4 {[%clk 0:02:55]}  Bf5 {[%clk 0:03:02]} 8. Qf4 {[%clk 0:02:53]}  e6 {[%clk 0:03:02]} 9. Bb3 {[%clk 0:02:51]}  Be7 {[%clk 0:03:00]} 10. O-O {[%clk 0:02:50]}  O-O {[%clk 0:03:00]} 11. d3 {[%clk 0:02:47]}  Qd8 {[%clk 0:02:58]} 12. Bd2 {[%clk 0:02:43]}  Bd6 {[%clk 0:02:58]} 13. Qe3 {[%clk 0:02:39]}  Nd7 {[%clk 0:02:56]} 14. d4 {[%clk 0:02:26]}  Qc7 {[%clk 0:02:53]} 15. c4 {[%clk 0:02:26]}  Rfe8 {[%clk 0:02:50]} 16. Bc3 {[%clk 0:02:25]}  Rad8 {[%clk 0:02:49]} 17. Rfe1 {[%clk 0:02:25]}  h6 {[%clk 0:02:41]} 18. h3 {[%clk 0:02:25]}  Nf6 {[%clk 0:02:34]} 19. Red1 {[%clk 0:02:09]}  Ne4 {[%clk 0:02:28]} 20. Be1 {[%clk 0:02:08]}  Bf4 {[%clk 0:02:28]} 21. Qe2 {[%clk 0:02:08]}  Nf6 {[%clk 0:02:16]} 22. Bc2 {[%clk 0:02:07]}  Bxc2 {[%clk 0:02:10]} 23. Qxc2 {[%clk 0:02:07]}  a6 {[%clk 0:01:58]} 24. Bc3 {[%clk 0:02:07]}  Bd6 {[%clk 0:01:43]} 25. Qe2 {[%clk 0:02:03]}  Qe7 {[%clk 0:01:41]} 26. a3 {[%clk 0:02:01]}  Nh7 {[%clk 0:01:34]} 27. Rd3 {[%clk 0:02:00]}  Ng5 {[%clk 0:01:33]} 28. Nd2 {[%clk 0:01:58]}  Bf4 {[%clk 0:01:20]} 29. Rd1 {[%clk 0:01:56]}  e5 {[%clk 0:01:18]} 30. dxe5 {[%clk 0:01:43]}  Rxd3 {[%clk 0:01:17]} 31. Qxd3 {[%clk 0:01:44]}  Bxe5 {[%clk 0:01:18]} 32. Nf1 {[%clk 0:01:29]}  Bxc3 {[%clk 0:01:17]} 33. Qxc3 {[%clk 0:01:30]}  Ne4 {[%clk 0:01:16]} 34. Qe3 {[%clk 0:01:28]}  Nc5 {[%clk 0:01:04]} 35. Qxe7 {[%clk 0:01:26]}  Rxe7 {[%clk 0:01:05]} 36. Rd8+ {[%clk 0:01:26]}  Kh7 {[%clk 0:01:04]} 37. b4 {[%clk 0:01:26]}  Ne4 {[%clk 0:01:01]} 38. Ne3 {[%clk 0:01:22]}  g6 {[%clk 0:01:01]} 39. c5 {[%clk 0:01:22]}  Kg7 {[%clk 0:00:59]} 40. Nc4 {[%clk 0:01:22]}  Kf6 {[%clk 0:00:53]} 41. Na5 {[%clk 0:01:13]}  Nc3 {[%clk 0:00:42]} 42. Kf1 {[%clk 0:01:11]}  Nb1 {[%clk 0:00:39]} 43. Rd3 {[%clk 0:01:09]}  Kf5 {[%clk 0:00:31]} 44. Nc4 {[%clk 0:01:01]}  Kf6 {[%clk 0:00:25]} 45. f3 {[%clk 0:01:00]}  Ke6 {[%clk 0:00:21]} 46. Re3+ {[%clk 0:00:56]}  Kf6 {[%clk 0:00:18]} 47. Rb3 {[%clk 0:00:56]} 1-0


[Site "https://www.chess.com"]

[Event "Titled Tuesday Blitz September 21 2021"]
[White "Nenezic, Marko"]
[Black "Lashkin, Jegor"]
[WhiteFideId "912123"]
[BlackFideId "13907808"]
[WhiteElo "2481"]
[BlackElo "2293"]
[Result "0-1"]
[Round "06"]
[TimeControl "180+1"]
[Date "2021.09.21"]
[WhiteClock "0:00:05"]
[BlackClock "0:00:03"]

1. Nf3 {[%clk 0:03:00]}  d5 {[%clk 0:02:59]} 2. d4 {[%clk 0:03:01]}  Nf6 {[%clk 0:02:59]} 3. c4 {[%clk 0:03:01]}  e6 {[%clk 0:02:59]} 4. g3 {[%clk 0:03:01]}  dxc4 {[%clk 0:02:59]} 5. Bg2 {[%clk 0:03:00]}  a6 {[%clk 0:02:59]} 6. Ne5 {[%clk 0:02:59]}  Bb4+ {[%clk 0:02:58]} 7. Nc3 {[%clk 0:02:59]}  Nd5 {[%clk 0:02:58]} 8. Qc2 {[%clk 0:02:53]}  b5 {[%clk 0:02:37]} 9. O-O {[%clk 0:02:52]}  O-O {[%clk 0:02:33]} 10. a4 {[%clk 0:02:44]}  f6 {[%clk 0:02:31]} 11. Ng4 {[%clk 0:02:37]}  Bb7 {[%clk 0:02:14]} 12. axb5 {[%clk 0:02:20]}  Bxc3 {[%clk 0:02:05]} 13. bxc3 {[%clk 0:02:21]}  h5 {[%clk 0:02:04]} 14. Nh6+ {[%clk 0:01:22]}  Kh8 {[%clk 0:01:44]} 15. bxa6 {[%clk 0:01:22]}  Nxa6 {[%clk 0:01:30]} 16. Rb1 {[%clk 0:01:20]}  Bc6 {[%clk 0:01:26]} 17. Ba3 {[%clk 0:01:19]}  gxh6 {[%clk 0:01:10]} 18. Qg6 {[%clk 0:01:15]}  Qd7 {[%clk 0:01:01]} 19. Qxh6+ {[%clk 0:01:13]}  Kg8 {[%clk 0:01:01]} 20. Bxf8 {[%clk 0:01:10]}  Rxf8 {[%clk 0:01:00]} 21. Ra1 {[%clk 0:01:04]}  Nb8 {[%clk 0:00:53]} 22. Qg6+ {[%clk 0:01:02]}  Qg7 {[%clk 0:00:52]} 23. Qc2 {[%clk 0:00:58]}  f5 {[%clk 0:00:43]} 24. e4 {[%clk 0:00:52]}  Nf4 {[%clk 0:00:38]} 25. d5 {[%clk 0:00:45]}  Nxg2 {[%clk 0:00:30]} 26. dxc6 {[%clk 0:00:44]}  Nf4 {[%clk 0:00:26]} 27. exf5 {[%clk 0:00:41]}  exf5 {[%clk 0:00:20]} 28. Qa2 {[%clk 0:00:33]}  Ne2+ {[%clk 0:00:17]} 29. Qxe2 {[%clk 0:00:32]}  Qf7 {[%clk 0:00:13]} 30. Ra4 {[%clk 0:00:26]}  Kg7 {[%clk 0:00:10]} 31. Rxc4 {[%clk 0:00:24]}  Re8 {[%clk 0:00:09]} 32. Qd3 {[%clk 0:00:25]}  Re6 {[%clk 0:00:08]} 33. Rf4 {[%clk 0:00:24]}  Rf6 {[%clk 0:00:07]} 34. Re1 {[%clk 0:00:23]}  Nxc6 {[%clk 0:00:07]} 35. h4 {[%clk 0:00:23]}  Ne7 {[%clk 0:00:08]} 36. Re5 {[%clk 0:00:22]}  Ng6 {[%clk 0:00:07]} 37. Rexf5 {[%clk 0:00:08]}  Nxf4 {[%clk 0:00:07]} 38. Rxf4 {[%clk 0:00:09]}  Rxf4 {[%clk 0:00:07]} 39. gxf4 {[%clk 0:00:09]}  Kf8 {[%clk 0:00:05]} 40. Qd4 {[%clk 0:00:08]}  Qg6+ {[%clk 0:00:05]} 41. Kf1 {[%clk 0:00:08]}  Qb1+ {[%clk 0:00:05]} 42. Kg2 {[%clk 0:00:08]}  Qg6+ {[%clk 0:00:05]} 43. Kf1 {[%clk 0:00:09]}  Qb1+ {[%clk 0:00:05]} 44. Ke2 {[%clk 0:00:09]}  Qc2+ {[%clk 0:00:04]} 45. Kf3 {[%clk 0:00:10]}  Qb2 {[%clk 0:00:03]} 46. Qc5+ {[%clk 0:00:10]}  Kg8 {[%clk 0:00:02]} 47. Qd5+ {[%clk 0:00:10]}  Kg7 {[%clk 0:00:02]} 48. Qd7+ {[%clk 0:00:10]}  Kf6 {[%clk 0:00:02]} 49. Qc6+ {[%clk 0:00:10]}  Kg7 {[%clk 0:00:02]} 50. Qxc7+ {[%clk 0:00:11]}  Kh6 {[%clk 0:00:02]} 51. Qd6+ {[%clk 0:00:11]}  Kh7 {[%clk 0:00:03]} 52. Qe7+ {[%clk 0:00:11]}  Kh6 {[%clk 0:00:03]} 53. Qg5+ {[%clk 0:00:11]}  Kh7 {[%clk 0:00:04]} 54. Qxh5+ {[%clk 0:00:12]}  Kg7 {[%clk 0:00:04]} 55. Qe5+ {[%clk 0:00:12]}  Kf7 {[%clk 0:00:05]} 56. h5 {[%clk 0:00:12]}  Qc1 {[%clk 0:00:04]} 57. h6 {[%clk 0:00:11]}  Qh1+ {[%clk 0:00:04]} 58. Ke3 {[%clk 0:00:11]}  Qxh6 {[%clk 0:00:03]} 59. c4 {[%clk 0:00:11]}  Qh3+ {[%clk 0:00:03]} 60. Kd4 {[%clk 0:00:11]}  Qb3 {[%clk 0:00:03]} 61. f5 {[%clk 0:00:10]}  Qb2+ {[%clk 0:00:03]} 62. Kd5 {[%clk 0:00:10]}  Qb7+ {[%clk 0:00:02]} 63. Kd4 {[%clk 0:00:10]}  Qb2+ {[%clk 0:00:02]} 64. Kd5 {[%clk 0:00:10]}  Qb7+ {[%clk 0:00:02]} 65. Kc5 {[%clk 0:00:11]}  Qa7+ {[%clk 0:00:02]} 66. Kb4 {[%clk 0:00:11]}  Qxf2 {[%clk 0:00:02]} 67. Qe6+ {[%clk 0:00:11]}  Kf8 {[%clk 0:00:02]} 68. Kb5 {[%clk 0:00:11]}  Qb2+ {[%clk 0:00:02]} 69. Kc6 {[%clk 0:00:11]}  Qg2+ {[%clk 0:00:03]} 70. Qd5 {[%clk 0:00:11]}  Qb2 {[%clk 0:00:03]} 71. c5 {[%clk 0:00:11]}  Kg7 {[%clk 0:00:03]} 72. Kd7 {[%clk 0:00:09]}  Kf6 {[%clk 0:00:03]} 73. c6 {[%clk 0:00:08]}  Kg5 {[%clk 0:00:02]} 74. c7 {[%clk 0:00:08]}  Qg7+ {[%clk 0:00:01]} 75. Kc6 {[%clk 0:00:08]}  Qf6+ {[%clk 0:00:02]} 76. Kb7 {[%clk 0:00:08]}  Qe7 {[%clk 0:00:02]} 77. Kc6 {[%clk 0:00:07]}  Qe8+ {[%clk 0:00:02]} 78. Qd7 {[%clk 0:00:07]}  Qe4+ {[%clk 0:00:03]} 79. Qd5 {[%clk 0:00:06]}  Qe8+ {[%clk 0:00:02]} 80. Kb7 {[%clk 0:00:06]}  Qe7 {[%clk 0:00:02]} 81. Kb8 {[%clk 0:00:06]}  Qb4+ {[%clk 0:00:03]} 82. Ka7 {[%clk 0:00:06]}  Qa5+ {[%clk 0:00:03]} 83. Kb7 {[%clk 0:00:06]}  Qxd5+ {[%clk 0:00:03]} 84. Kb8 {[%clk 0:00:05]}  Qb5+ {[%clk 0:00:03]} 85. Ka8 {[%clk 0:00:05]}  Qc6+ {[%clk 0:00:03]} 86. Kb8 {[%clk 0:00:05]}  Qb6+ {[%clk 0:00:03]} 0-1


[Site "https://www.chess.com"]

[Event "Titled Tuesday Blitz September 21 2021"]
[White "Odegov, Artem"]
[Black "Vlassov, Nikolai"]
[WhiteFideId "34183644"]
[BlackFideId "4103360"]
[WhiteElo "2257"]
[BlackElo "2407"]
[Result "1-0"]
[Round "06"]
[TimeControl "180+1"]
[Date "2021.09.21"]
[WhiteClock "0:00:09"]
[BlackClock "0:00:12"]

1. d4 {[%clk 0:03:00]}  Nf6 {[%clk 0:02:59]} 2. c4 {[%clk 0:03:00]}  Nc6 {[%clk 0:02:58]} 3. Nf3 {[%clk 0:02:56]}  e6 {[%clk 0:02:58]} 4. Nc3 {[%clk 0:02:55]}  Bb4 {[%clk 0:02:58]} 5. g3 {[%clk 0:02:53]}  Bxc3+ {[%clk 0:02:58]} 6. bxc3 {[%clk 0:02:54]}  O-O {[%clk 0:02:58]} 7. Bg2 {[%clk 0:02:53]}  Rb8 {[%clk 0:02:57]} 8. O-O {[%clk 0:02:53]}  b6 {[%clk 0:02:57]} 9. Qc2 {[%clk 0:02:53]}  Na5 {[%clk 0:02:57]} 10. c5 {[%clk 0:02:41]}  Bb7 {[%clk 0:02:49]} 11. cxb6 {[%clk 0:02:36]}  axb6 {[%clk 0:02:48]} 12. Ne5 {[%clk 0:02:17]}  Bxg2 {[%clk 0:02:47]} 13. Kxg2 {[%clk 0:02:18]}  d6 {[%clk 0:02:46]} 14. Nf3 {[%clk 0:02:18]}  Qd7 {[%clk 0:02:45]} 15. e4 {[%clk 0:02:17]}  Qc6 {[%clk 0:02:42]} 16. Re1 {[%clk 0:02:17]}  Ra8 {[%clk 0:02:37]} 17. Bg5 {[%clk 0:02:11]}  Nd7 {[%clk 0:02:33]} 18. h4 {[%clk 0:01:47]}  Nc4 {[%clk 0:02:31]} 19. Kh2 {[%clk 0:01:47]}  Ra4 {[%clk 0:02:28]} 20. d5 {[%clk 0:01:45]}  Qa8 {[%clk 0:02:11]} 21. Nd4 {[%clk 0:01:39]}  Nc5 {[%clk 0:02:05]} 22. Nc6 {[%clk 0:01:20]}  e5 {[%clk 0:01:54]} 23. Qe2 {[%clk 0:01:15]}  f6 {[%clk 0:01:50]} 24. Bc1 {[%clk 0:01:06]}  g6 {[%clk 0:01:46]} 25. h5 {[%clk 0:01:06]}  Kg7 {[%clk 0:01:46]} 26. Qg4 {[%clk 0:00:35]}  Rxa2 {[%clk 0:01:35]} 27. Rxa2 {[%clk 0:00:36]}  Qxa2 {[%clk 0:01:34]} 28. Kg1 {[%clk 0:00:36]}  f5 {[%clk 0:01:16]} 29. Qg5 {[%clk 0:00:27]}  fxe4 {[%clk 0:00:19]} 30. Rf1 {[%clk 0:00:08]}  e3 {[%clk 0:00:14]} 31. Qe7+ {[%clk 0:00:08]}  Rf7 {[%clk 0:00:13]} 32. h6+ {[%clk 0:00:08]}  Kg8 {[%clk 0:00:13]} 33. Qe8+ {[%clk 0:00:08]}  Rf8 {[%clk 0:00:12]} 34. Ne7+ {[%clk 0:00:08]}  Kh8 {[%clk 0:00:12]} 35. Qxf8# {[%clk 0:00:09]} 1-0


[Site "https://www.chess.com"]

[Event "Titled Tuesday Blitz September 21 2021"]
[White "Onyshchuk, Volodymyr"]
[Black "Ozates, Tuna"]
[WhiteFideId "14114038"]
[BlackFideId "6354521"]
[WhiteElo "2603"]
[BlackElo "1872"]
[Result "1-0"]
[Round "06"]
[TimeControl "180+1"]
[Date "2021.09.21"]
[WhiteClock "0:01:59"]
[BlackClock "0:01:34"]

1. e4 {[%clk 0:02:59]}  e5 {[%clk 0:02:59]} 2. Nf3 {[%clk 0:02:59]}  Nc6 {[%clk 0:02:59]} 3. Bc4 {[%clk 0:02:59]}  Bc5 {[%clk 0:02:59]} 4. c3 {[%clk 0:02:59]}  Nf6 {[%clk 0:02:59]} 5. d3 {[%clk 0:03:00]}  a6 {[%clk 0:02:59]} 6. Nbd2 {[%clk 0:03:00]}  O-O {[%clk 0:02:58]} 7. Bb3 {[%clk 0:02:59]}  Ba7 {[%clk 0:02:57]} 8. O-O {[%clk 0:02:58]}  d6 {[%clk 0:02:55]} 9. h3 {[%clk 0:02:58]}  Ne7 {[%clk 0:02:56]} 10. Re1 {[%clk 0:02:58]}  Ng6 {[%clk 0:02:56]} 11. Nf1 {[%clk 0:02:59]}  Nh5 {[%clk 0:02:55]} 12. d4 {[%clk 0:02:46]}  Nhf4 {[%clk 0:02:52]} 13. Ng3 {[%clk 0:02:45]}  h6 {[%clk 0:02:49]} 14. Bc2 {[%clk 0:02:34]}  Qf6 {[%clk 0:02:48]} 15. Be3 {[%clk 0:02:29]}  Be6 {[%clk 0:02:34]} 16. Nf5 {[%clk 0:02:28]}  Rfd8 {[%clk 0:01:58]} 17. Qc1 {[%clk 0:02:17]}  c5 {[%clk 0:01:51]} 18. d5 {[%clk 0:02:14]}  Bxf5 {[%clk 0:01:47]} 19. exf5 {[%clk 0:02:13]}  Ne7 {[%clk 0:01:46]} 20. Bxf4 {[%clk 0:02:07]}  exf4 {[%clk 0:01:45]} 21. Qxf4 {[%clk 0:02:05]}  Nxd5 {[%clk 0:01:45]} 22. Qe4 {[%clk 0:02:05]}  Ne7 {[%clk 0:01:34]} 23. Qxe7 {[%clk 0:01:59]} 1-0


[Site "https://www.chess.com"]

[Event "Titled Tuesday Blitz September 21 2021"]
[White "Pasti, Aron"]
[Black "Zhigalko, Sergei"]
[WhiteFideId "785857"]
[BlackFideId "13502956"]
[WhiteElo "2080"]
[BlackElo "2662"]
[Result "0-1"]
[Round "06"]
[TimeControl "180+1"]
[Date "2021.09.21"]
[WhiteClock "0:00:08"]
[BlackClock "0:00:34"]

1. e4 {[%clk 0:03:00]}  c5 {[%clk 0:02:58]} 2. Nf3 {[%clk 0:02:58]}  d6 {[%clk 0:02:59]} 3. d4 {[%clk 0:02:58]}  cxd4 {[%clk 0:02:59]} 4. Nxd4 {[%clk 0:02:59]}  Nf6 {[%clk 0:03:00]} 5. Nc3 {[%clk 0:02:58]}  a6 {[%clk 0:03:00]} 6. Bg5 {[%clk 0:02:58]}  Nbd7 {[%clk 0:03:00]} 7. Bc4 {[%clk 0:02:57]}  Qb6 {[%clk 0:02:59]} 8. Bb3 {[%clk 0:02:57]}  e6 {[%clk 0:02:58]} 9. Qd2 {[%clk 0:02:55]}  Be7 {[%clk 0:02:58]} 10. O-O-O {[%clk 0:02:53]}  Nc5 {[%clk 0:02:58]} 11. f3 {[%clk 0:02:52]}  Qc7 {[%clk 0:02:54]} 12. h4 {[%clk 0:02:52]}  b5 {[%clk 0:02:54]} 13. g4 {[%clk 0:02:44]}  Bd7 {[%clk 0:02:42]} 14. Kb1 {[%clk 0:02:37]}  b4 {[%clk 0:02:40]} 15. Nce2 {[%clk 0:02:36]}  a5 {[%clk 0:02:41]} 16. Ng3 {[%clk 0:02:29]}  O-O {[%clk 0:02:18]} 17. Nh5 {[%clk 0:02:23]}  Qd8 {[%clk 0:01:46]} 18. Bxf6 {[%clk 0:02:01]}  Bxf6 {[%clk 0:01:45]} 19. Nxf6+ {[%clk 0:02:01]}  Qxf6 {[%clk 0:01:43]} 20. g5 {[%clk 0:02:00]}  Qe7 {[%clk 0:01:27]} 21. h5 {[%clk 0:02:00]}  Rac8 {[%clk 0:01:10]} 22. g6 {[%clk 0:01:46]}  a4 {[%clk 0:01:01]} 23. gxh7+ {[%clk 0:00:39]}  Kh8 {[%clk 0:01:00]} 24. Bc4 {[%clk 0:00:34]}  Nxe4 {[%clk 0:00:59]} 25. fxe4 {[%clk 0:00:24]}  Rxc4 {[%clk 0:00:58]} 26. Rhg1 {[%clk 0:00:21]}  Qf6 {[%clk 0:00:55]} 27. Rdf1 {[%clk 0:00:20]}  Qxd4 {[%clk 0:00:54]} 28. Qe2 {[%clk 0:00:12]}  a3 {[%clk 0:00:50]} 29. c3 {[%clk 0:00:08]}  bxc3 {[%clk 0:00:45]} 30. h6 {[%clk 0:00:09]}  g6 {[%clk 0:00:35]} 31. Rxg6 {[%clk 0:00:08]}  c2+ {[%clk 0:00:34]} 0-1


[Site "https://www.chess.com"]

[Event "Titled Tuesday Blitz September 21 2021"]
[White "Perez Gormaz, Matias"]
[Black "Omariev, Maksim"]
[WhiteFideId "3406342"]
[BlackFideId "4193423"]
[WhiteElo "2352"]
[BlackElo "2466"]
[Result "1-0"]
[Round "06"]
[TimeControl "180+1"]
[Date "2021.09.21"]
[WhiteClock "0:01:06"]
[BlackClock "0:00:01"]

1. e4 {[%clk 0:03:00]}  c5 {[%clk 0:02:57]} 2. Nf3 {[%clk 0:03:01]}  d6 {[%clk 0:02:57]} 3. d4 {[%clk 0:03:01]}  cxd4 {[%clk 0:02:58]} 4. Nxd4 {[%clk 0:03:01]}  Nf6 {[%clk 0:02:58]} 5. Nc3 {[%clk 0:03:02]}  a6 {[%clk 0:02:59]} 6. Bg5 {[%clk 0:03:03]}  Nbd7 {[%clk 0:02:58]} 7. Bc4 {[%clk 0:03:02]}  e6 {[%clk 0:02:58]} 8. Qe2 {[%clk 0:03:00]}  Qb6 {[%clk 0:02:51]} 9. O-O-O {[%clk 0:02:56]}  Qc5 {[%clk 0:02:49]} 10. f4 {[%clk 0:02:36]}  h6 {[%clk 0:02:25]} 11. Bh4 {[%clk 0:02:28]}  g5 {[%clk 0:02:25]} 12. Bf2 {[%clk 0:02:22]}  Qa5 {[%clk 0:02:21]} 13. f5 {[%clk 0:02:17]}  Ne5 {[%clk 0:02:18]} 14. fxe6 {[%clk 0:02:15]}  fxe6 {[%clk 0:02:14]} 15. Bxe6 {[%clk 0:02:12]}  Be7 {[%clk 0:02:07]} 16. h4 {[%clk 0:02:04]}  g4 {[%clk 0:01:52]} 17. Rhf1 {[%clk 0:02:02]}  Bxe6 {[%clk 0:01:44]} 18. Nxe6 {[%clk 0:02:02]}  Rc8 {[%clk 0:01:45]} 19. Bd4 {[%clk 0:01:57]}  Kd7 {[%clk 0:01:36]} 20. Ng7 {[%clk 0:01:46]}  Kc7 {[%clk 0:00:59]} 21. Nf5 {[%clk 0:01:40]}  Bd8 {[%clk 0:00:57]} 22. Kb1 {[%clk 0:01:38]}  Ne8 {[%clk 0:00:39]} 23. Nd5+ {[%clk 0:01:28]}  Kb8 {[%clk 0:00:39]} 24. Nxd6 {[%clk 0:01:28]}  Nxd6 {[%clk 0:00:13]} 25. Bxe5 {[%clk 0:01:28]}  Re8 {[%clk 0:00:11]} 26. Bxd6+ {[%clk 0:01:28]}  Ka8 {[%clk 0:00:12]} 27. Qd3 {[%clk 0:01:22]}  Bxh4 {[%clk 0:00:10]} 28. a3 {[%clk 0:01:08]}  Bg5 {[%clk 0:00:09]} 29. Rf7 {[%clk 0:01:07]}  Bd8 {[%clk 0:00:06]} 30. Qb3 {[%clk 0:01:06]}  b5 {[%clk 0:00:01]} 31. Nb4 {[%clk 0:01:06]}  Qb6 {[%clk 0:00:01]} 32. Qd5+ {[%clk 0:01:06]} 1-0


[Site "https://www.chess.com"]